bitfinex-derivatives/quotes_BTCF0:USTF0_20251125
["timestamp","ask_amount","ask_price","bid_price","bid_amount"]
[1764074883916,0.07807109,87651.0,87650.0,0.25777]
[1764074884112,0.07807109,87651.0,87650.0,0.07753]
[1764074884312,0.07807109,87651.0,87650.0,0.25777]
[1764074885622,0.0893136,87644.0,87643.0,0.15930582]
[1764074885821,0.0893136,87644.0,87643.0,0.33954582]
[1764074886321,0.0893136,87644.0,87643.0,0.25777]
[1764074886508,0.0893136,87644.0,87643.0,0.07753]
[1764074886715,0.0893136,87644.0,87643.0,0.23213]
[1764074887420,0.0779,87644.0,87643.0,0.23213]
[1764074887810,0.03865,87648.0,87647.0,0.07753]
[1764074888014,0.01158379,87651.0,87650.0,0.07753]
[1764074888221,0.05023379,87651.0,87650.0,0.07753]
[1764074888417,0.00017109,87651.0,87650.0,0.07753]
[1764074890715,0.01301961,87675.0,87651.0,0.00569]
[1764074891017,0.0779,87669.0,87668.0,0.07753]
[1764074891914,0.07809,87661.0,87660.0,0.24130682]
[1764074892126,0.07809,87669.0,87668.0,0.07982]
[1764074892314,0.07809,87669.0,87668.0,0.21026]
[1764074893021,0.03836,87669.0,87668.0,0.21026]
[1764074893821,0.07809,87669.0,87668.0,0.21026]
[1764074895217,0.00017109,87677.0,87676.0,0.07982]
[1764074895218,0.07826109,87677.0,87676.0,0.07982]
[1764074896328,0.57826109,87677.0,87676.0,0.07982]
[1764074898021,0.50017109,87677.0,87676.0,0.07982]
[1764074898423,0.10131,87704.0,87703.0,0.011406]
[1764074898626,0.02322,87704.0,87703.0,0.105726]
[1764074898928,0.02322,87704.0,87703.0,0.09432]
[1764074899132,0.10131,87704.0,87703.0,0.09432]
[1764074899831,0.07809,87699.0,87698.0,1.5]
[1764074900032,0.07809,87699.0,87698.0,1.68032]
[1764074900226,0.07809,87699.0,87698.0,1.5]
[1764074900431,0.07809,87699.0,87698.0,1.68032]
[1764074900630,0.07809,87699.0,87698.0,0.18032]
[1764074901031,0.07809,87699.0,87695.0,0.00017109]
[1764074901032,0.10131,87696.0,87695.0,0.00017109]
[1764074901226,0.10131,87696.0,87695.0,0.18049109]
[1764074901634,0.10131,87696.0,87695.0,1.50017109]
[1764074902139,0.10131,87696.0,87695.0,0.18049109]
[1764074902836,0.10131,87696.0,87695.0,0.00017109]
[1764074903031,0.10131,87696.0,87695.0,0.07037109]
[1764074903932,0.10131,87696.0,87695.0,0.18045109]
[1764074904139,0.10131,87696.0,87695.0,0.00017109]
[1764074904436,0.60131,87696.0,87695.0,0.00017109]
[1764074905536,0.60231,87696.0,87695.0,0.00017109]
[1764074906129,0.07809,87677.0,87676.0,0.0114094]
[1764074906439,0.02322,87678.0,87675.0,0.04069681]
[1764074906440,0.07809,87676.0,87675.0,0.04069681]
[1764074906733,0.07809,87672.0,87670.0,0.04069681]
[1764074906943,0.07809,87666.0,87665.0,0.04069681]
[1764074907134,0.07809,87663.0,87662.0,0.05210811]
[1764074907436,0.07809,87663.0,87662.0,0.1916913]
[1764074907836,0.07809,87663.0,87662.0,0.18028]
[1764074909436,0.07809,87663.0,87662.0,0.1916913]
[1764074909636,0.07809,87663.0,87662.0,0.18028]
[1764074909831,0.02322,87660.0,87657.0,0.06153779]
[1764074910028,0.06158,87660.0,87658.0,0.11396]
[1764074910339,0.06158,87660.0,87659.0,1.5]
[1764074910839,0.10131,87660.0,87659.0,1.5]
[1764074911035,0.07809,87658.0,87657.0,0.00017109]
[1764074911542,0.07809,87658.0,87657.0,1.09e-06]
[1764074914442,0.0346316,87660.0,87657.0,1.09e-06]
[1764074914740,0.02322,87660.0,87657.0,1.09e-06]
[1764074915042,0.02322,87669.0,87657.0,1.09e-06]
[1764074915341,0.03836,87665.0,87662.0,0.0114112]
[1764074915539,0.07809,87665.0,87662.0,0.0114112]
[1764074915741,0.07809,87661.0,87660.0,0.0613667]
[1764074915939,0.10131,87660.0,87659.0,0.0613667]
[1764074916134,0.10131,87660.0,87659.0,0.1742867]
[1764074916444,0.10131,87660.0,87659.0,0.18036]
[1764074918242,0.10131,87660.0,87659.0,0.2417267]
[1764074918438,0.10131,87660.0,87659.0,0.18036]
[1764074918940,0.0114117,87659.0,87657.0,1.09e-06]
[1764074919140,0.0895017,87659.0,87658.0,0.18032]
[1764074919532,0.0114117,87659.0,87657.0,1.09e-06]
[1764074920849,0.0114117,87659.0,87647.0,0.04081128]
[1764074920850,0.0895037,87649.0,87647.0,0.04081128]
[1764074921051,0.0852745,87643.0,87642.0,0.12429128]
[1764074921248,0.0852745,87643.0,87642.0,0.08348]
[1764074922553,0.085275,87639.0,87638.0,0.07754128]
[1764074922848,0.07386,87639.0,87638.0,0.16186]
[1764074923049,0.03641,87639.0,87638.0,0.16186]
[1764074923245,0.09725109,87651.0,87650.0,0.07602]
[1764074925647,0.03762109,87651.0,87650.0,0.07602]
[1764074926150,0.09625109,87651.0,87650.0,0.03673]
[1764074926348,0.07386,87648.0,87647.0,0.03059576]
[1764074926552,0.07386,87648.0,87626.0,0.09325615]
[1764074926553,0.07386,87641.0,87640.0,0.03059576]
[1764074926752,0.07386,87640.0,87639.0,0.10555576]
[1764074927052,0.07386,87640.0,87639.0,0.07496]
[1764074927649,0.07386,87640.0,87639.0,0.15098]
[1764074928050,0.10766459,87651.0,87650.0,0.03673]
[1764074928543,0.10766459,87651.0,87640.0,0.12042135]
[1764074928544,0.07386,87643.0,87642.0,0.07602]
[1764074929542,0.07386,87643.0,87642.0,0.06730812]
[1764074930350,0.07386,87643.0,87642.0,0.03673]
[1764074930750,0.07386,87640.0,87639.0,0.07496]
[1764074931055,0.07386,87640.0,87639.0,0.11169]
[1764074931251,0.07386,87640.0,87639.0,0.15098]
[1764074931647,0.07386,87640.0,87639.0,0.19180158]
[1764074931849,0.07386,87640.0,87639.0,0.22118158]
[1764074932049,0.0336346,87642.0,87638.0,0.04082158]
[1764074932050,0.085275,87639.0,87638.0,0.04082158]
[1764074932259,0.07386,87638.0,87637.0,0.18036]
[1764074932451,0.07386,87638.0,87637.0,0.25638]
[1764074932652,0.07386,87638.0,87637.0,0.18036]
[1764074933858,0.07386,87638.0,87637.0,0.21709]
[1764074934859,0.0852755,87635.0,87634.0,0.0613667]
[1764074935058,0.0852755,87635.0,87634.0,0.2417267]
[1764074935357,0.0852755,87635.0,87634.0,0.25638]
[1764074935963,0.0852755,87635.0,87624.0,0.07602]
[1764074935964,0.07386,87625.0,87624.0,0.07602]
[1764074936153,0.07386,87625.0,87624.0,0.25634]
[1764074937361,0.09625109,87633.0,87632.0,0.07602]
[1764074937763,0.10766689,87633.0,87632.0,0.07602]
[1764074938155,0.60766689,87633.0,87632.0,0.07602]
[1764074938762,0.59625109,87633.0,87632.0,0.07602]
[1764074939257,0.59725109,87633.0,87632.0,0.07602]
[1764074939761,0.59725109,87633.0,87632.0,0.09811839]
[1764074939967,0.59725109,87633.0,87632.0,0.06138839]
[1764074940263,0.09674,87625.0,87624.0,0.27678]
[1764074940460,0.09674,87625.0,87624.0,0.09646]
[1764074940761,0.1081568,87625.0,87624.0,0.0481]
[1764074940968,0.52239109,87633.0,87611.0,0.10185407]
[1764074940969,0.1081574,87621.0,87619.0,0.08183955]
[1764074941167,0.1081581,87615.0,87614.0,0.0481]
[1764074941365,0.09674,87615.0,87614.0,0.22846]
[1764074941867,0.1081583,87614.0,87612.0,0.06141956]
[1764074942160,0.1081583,87614.0,87584.0,0.10932407]
[1764074942161,0.1367301,87600.0,87599.0,0.06141956]
[1764074942356,0.09674,87582.0,87581.0,0.09646]
[1764074942556,0.0114226,87581.0,87571.0,0.08183955]
[1764074942752,0.02857,87584.0,87572.0,0.1917837]
[1764074943061,0.12531,87584.0,87583.0,0.09646]
[1764074943366,0.12543049,87584.0,87583.0,0.09646]
[1764074943966,0.00012049,87584.0,87583.0,0.09646]
[1764074944666,0.04829049,87584.0,87583.0,0.09646]
[1764074944867,0.09686049,87584.0,87583.0,0.09646]
[1764074945070,0.09674,87580.0,87579.0,0.08899656]
[1764074945363,0.09674,87580.0,87579.0,0.0481]
[1764074945669,0.09674,87577.0,87576.0,0.04089656]
[1764074945969,0.09674,87577.0,87576.0,0.21006]
[1764074946167,0.09674,87577.0,87576.0,0.25087034]
[1764074946368,0.09674,87577.0,87576.0,0.29923034]
[1764074946965,0.09686049,87584.0,87583.0,0.09646]
[1764074947170,0.04829049,87584.0,87583.0,0.09646]
[1764074947967,0.00012049,87584.0,87583.0,0.09646]
[1764074948163,0.00012049,87584.0,87583.0,0.12705296]
[1764074948369,0.00012049,87584.0,87583.0,0.09646]
[1764074948557,0.04829049,87584.0,87583.0,0.09646]
[1764074949172,0.09674,87578.0,87577.0,0.09646]
[1764074949373,0.09674,87578.0,87577.0,0.27686]
[1764074952263,0.09655,87576.0,87574.0,0.04081034]
[1764074952471,0.09655,87574.0,87573.0,0.04081034]
[1764074952771,0.09655,87573.0,87572.0,0.26468]
[1764074952970,0.09668604,87573.0,87572.0,0.26468]
[1764074953773,0.09655,87567.0,87566.0,0.08428]
[1764074953967,0.09655,87567.0,87566.0,0.26468]
[1764074954678,0.00013604,87573.0,87572.0,0.08428]
[1764074954978,0.09668604,87573.0,87572.0,0.08428]
[1764074955163,0.09655,87569.0,87568.0,0.04214]
[1764074955369,0.09655,87569.0,87568.0,0.11866]
[1764074955566,0.09655,87569.0,87568.0,0.1608]
[1764074955765,0.02976,87570.0,87569.0,0.08428]
[1764074956177,0.00013604,87573.0,87572.0,0.08428]
[1764074956571,0.04851604,87573.0,87572.0,0.08428]
[1764074956778,0.00013604,87573.0,87572.0,0.08428]
[1764074958272,0.0114204,87598.0,87580.0,0.0957027]
[1764074958579,0.02976,87606.0,87580.0,0.0957027]
[1764074959577,0.0114199,87602.0,87580.0,0.0957027]
[1764074959772,0.0411806,87597.0,87580.0,0.0957027]
[1764074959966,1.3e-06,87581.0,87580.0,0.0957027]
[1764074960272,0.12631,87606.0,87605.0,0.08368]
[1764074960775,0.62631,87606.0,87605.0,0.08368]
[1764074961769,0.62731,87606.0,87605.0,0.08368]
[1764074962578,0.501,87606.0,87605.0,0.08368]
[1764074963166,0.12731,87606.0,87605.0,0.08368]
[1764074963874,0.12631,87606.0,87605.0,0.21616]
[1764074964071,0.0967213,87614.0,87613.0,0.08368]
[1764074966185,0.0001713,87614.0,87613.0,0.08368]
[1764074966387,0.0001713,87614.0,87613.0,0.12445555]
[1764074966780,0.0001713,87614.0,87613.0,0.08368]
[1764074966781,0.0485513,87614.0,87613.0,0.08368]
[1764074967174,0.0967213,87614.0,87613.0,0.08368]
[1764074967568,0.0967213,87614.0,87613.0,0.26408]
[1764074967773,0.0977213,87614.0,87613.0,0.26408]
[1764074967978,0.0011713,87614.0,87613.0,0.26408]
[1764074968379,0.0001713,87614.0,87613.0,0.26408]
[1764074968578,0.0967213,87614.0,87613.0,0.26408]
[1764074969180,0.0967213,87614.0,87613.0,0.08368]
[1764074969384,0.09655,87607.0,87606.0,0.16551955]
[1764074969579,0.09655,87607.0,87606.0,0.2098]
[1764074969783,0.1079693,87607.0,87599.0,0.08183955]
[1764074969985,0.12631,87606.0,87605.0,0.08368]
[1764074970586,0.0967213,87614.0,87613.0,0.08368]
[1764074971178,0.0485513,87614.0,87613.0,0.08368]
[1764074971378,0.0001713,87614.0,87613.0,0.08368]
[1764074971789,0.0495513,87614.0,87613.0,0.08368]
[1764074971986,0.0495513,87614.0,87613.0,0.26408]
[1764074971987,0.0977213,87614.0,87613.0,0.26408]
[1764074972486,0.0967213,87614.0,87613.0,0.26408]
[1764074972878,0.0967213,87614.0,87613.0,0.1804]
[1764074973086,0.0967213,87614.0,87613.0,0.04088015]
[1764074973285,0.1079684,87613.0,87611.0,0.04088015]
[1764074973480,0.1377288,87610.0,87609.0,0.04088015]
[1764074974287,0.1377288,87610.0,87609.0,0.22128015]
[1764074974683,0.1377288,87610.0,87609.0,0.1804]
[1764074974884,0.09655,87609.0,87608.0,0.04088015]
[1764074975080,0.09655,87609.0,87608.0,0.1804]
[1764074976486,0.09655,87609.0,87608.0,0.26312015]
[1764074976684,0.09655,87609.0,87608.0,0.22224]
[1764074976889,0.09655,87609.0,87608.0,0.1804]
[1764074977093,0.09655,87609.0,87608.0,0.22127706]
[1764074977281,0.09655,87609.0,87608.0,0.22127857]
[1764074977481,0.09755,87609.0,87608.0,0.04087857]
[1764074977681,0.09755,87609.0,87603.0,0.0613226]
[1764074977682,0.09655,87607.0,87606.0,0.18036]
[1764074978787,0.1079693,87606.0,87605.0,0.04087857]
[1764074978987,0.09655,87605.0,87604.0,0.14723857]
[1764074979193,0.09655,87605.0,87604.0,0.10636]
[1764074980388,0.09655,87603.0,87602.0,0.04087857]
[1764074980587,0.1079698,87602.0,87601.0,0.04087857]
[1764074980786,0.1079698,87602.0,87600.0,0.18036]
[1764074980787,0.09655,87601.0,87600.0,0.04087857]
[1764074980987,0.09424,87598.0,87597.0,0.04104987]
[1764074981692,0.09424,87598.0,87597.0,0.0001713]
[1764074982796,0.09424,87598.0,87597.0,0.03085239]
[1764074983188,0.09424,87598.0,87597.0,0.0001713]
[1764074983988,0.09424,87598.0,87597.0,0.03086147]
[1764074984185,0.09424,87598.0,87597.0,0.0001713]
[1764074984589,0.09424,87598.0,87597.0,0.0275813]
[1764074984900,0.1056604,87598.0,87597.0,0.0549913]
[1764074985199,0.09424,87598.0,87597.0,0.0001713]
[1764074985493,0.09424,87598.0,87597.0,0.0275813]
[1764074985689,0.09424,87598.0,87597.0,0.0001713]
[1764074992697,0.09424,87598.0,87597.0,0.0549913]
[1764074993197,0.1056604,87598.0,87597.0,0.0549913]
[1764074993901,0.0114204,87598.0,87597.0,0.1163139]
[1764074994200,0.0114204,87598.0,87597.0,0.0549913]
[1764074994396,0.0114201,87601.0,87597.0,0.0549913]
[1764074994595,0.0114201,87601.0,87600.0,0.05482]
[1764074994596,0.0587301,87601.0,87600.0,0.05482]
[1764074995095,0.09317,87601.0,87600.0,0.0662401]
[1764074995300,0.5,87601.0,87600.0,0.0662401]
[1764074996289,0.54731,87601.0,87600.0,0.0662401]
[1764074996699,0.04731,87601.0,87600.0,0.0662401]
[1764074996895,0.04731,87601.0,87600.0,0.05482]
[1764074997096,0.09317,87598.0,87597.0,0.0001713]
[1764074997297,0.09317,87598.0,87597.0,0.23361085]
[1764074997496,0.09317,87598.0,87597.0,0.28843085]
[1764074997898,0.09317,87598.0,87597.0,0.13683085]
[1764074998198,0.09317,87598.0,87597.0,0.1805313]
[1764074998397,0.09317,87598.0,87597.0,0.2210713]
[1764074998696,0.09317,87598.0,87597.0,0.0407113]
[1764074998898,0.09317,87598.0,87597.0,0.1805313]
[1764074999300,0.09317,87598.0,87597.0,0.0001713]
[1764074999501,0.09317,87598.0,87597.0,0.1805313]
[1764075000902,0.09317,87598.0,87597.0,0.0001713]
[1764075001096,0.10973,87584.0,87581.0,0.08183955]
[1764075001298,0.08383,87582.0,87581.0,0.04054]
[1764075001600,0.08383,87582.0,87581.0,0.2323226]
[1764075001999,0.08383,87582.0,87581.0,0.2209]
[1764075003401,0.08383,87582.0,87575.0,0.12237955]
[1764075003402,0.10973,87576.0,87575.0,0.12237955]
[1764075003605,0.10973,87576.0,87575.0,0.30273955]
[1764075004106,0.10973,87576.0,87575.0,0.12237955]
[1764075004306,0.10973,87576.0,87575.0,0.30273955]
[1764075004805,0.10973,87584.0,87583.0,0.04054]
[1764075006206,0.10973,87584.0,87583.0,0.02027]
[1764075006407,0.10973,87584.0,87583.0,0.04054]
[1764075008304,0.08383,87577.0,87576.0,0.12261958]
[1764075008607,0.10973,87577.0,87576.0,0.04054]
[1764075009795,0.10973,87577.0,87564.0,0.0114248]
[1764075009796,0.08383,87573.0,87572.0,0.08207958]
[1764075009996,0.08383,87567.0,87564.0,0.08207958]
[1764075010203,0.08383,87565.0,87564.0,0.04054]
[1764075010404,0.08383,87562.0,87561.0,0.02027]
[1764075010608,0.0259,87563.0,87545.0,0.07697664]
[1764075010609,0.08383,87546.0,87545.0,0.07697664]
[1764075010794,0.0259,87552.0,87543.0,0.04054]
[1764075010795,0.10973,87544.0,87543.0,0.04054]
[1764075011100,0.10973,87544.0,87543.0,0.20063]
[1764075011504,0.10973,87544.0,87543.0,0.02027]
[1764075011697,0.08477,87534.0,87533.0,0.13053407]
[1764075011899,0.08477,87534.0,87533.0,0.07972]
[1764075012110,0.02367,87536.0,87535.0,0.02868]
[1764075012302,0.11067,87544.0,87543.0,0.02868]
[1764075012702,0.11067,87544.0,87543.0,0.0401075]
[1764075013106,0.11067,87544.0,87539.0,0.08197647]
[1764075013107,0.08477,87540.0,87539.0,0.08197647]
[1764075013308,0.08477,87538.0,87537.0,0.11065647]
[1764075013508,0.08477,87538.0,87537.0,0.20904]
[1764075013812,0.08477,87538.0,87537.0,0.2204683]
[1764075014007,0.04345,87538.0,87537.0,0.30244477]
[1764075014309,0.11067,87544.0,87543.0,0.0401075]
[1764075015004,0.1108413,87552.0,87551.0,0.02868]
[1764075015405,0.08477,87549.0,87547.0,0.06140506]
[1764075015606,0.08477,87549.0,87548.0,0.18036]
[1764075015807,0.08477,87549.0,87548.0,0.1947]
[1764075016009,0.08477,87549.0,87548.0,0.20904]
[1764075016211,0.04345,87549.0,87548.0,0.20904]
[1764075016411,0.0001713,87552.0,87551.0,0.02868]
[1764075017006,0.0672913,87552.0,87551.0,0.02868]
[1764075017715,0.1086113,87552.0,87551.0,0.02868]
[1764075018106,0.0001713,87552.0,87551.0,0.02868]
[1764075020010,0.1086113,87552.0,87551.0,0.20908]
[1764075020313,0.10844,87543.0,87542.0,0.1491652]
[1764075020509,0.10844,87543.0,87542.0,0.02868]
[1764075020813,0.10844,87543.0,87542.0,0.01434]
[1764075021009,0.10844,87543.0,87542.0,0.11738]
[1764075021512,0.10844,87543.0,87542.0,0.20908]
[1764075023114,0.1086113,87552.0,87551.0,0.02868]
[1764075023505,0.1086113,87552.0,87551.0,0.01434]
[1764075024010,0.04345,87546.0,87545.0,0.04086369]
[1764075024213,0.08477,87546.0,87545.0,0.24994369]
[1764075024512,0.08477,87546.0,87545.0,0.22126369]
[1764075025109,0.08477,87546.0,87545.0,0.1804]
[1764075025510,0.08477,87546.0,87545.0,0.20908]
[1764075025906,0.08477,87546.0,87545.0,0.02868]
[1764075026111,0.08477,87546.0,87545.0,0.20908]
[1764075026323,0.08477,87546.0,87545.0,0.2205073]
[1764075027114,0.08477,87546.0,87545.0,0.20908]
[1764075027819,0.1086113,87552.0,87551.0,0.0401065]
[1764075028023,0.1086113,87552.0,87551.0,0.02868]
[1764075029322,0.1200377,87552.0,87551.0,0.04089019]
[1764075029515,0.0961966,87550.0,87549.0,0.04089019]
[1764075029720,0.0961966,87550.0,87549.0,0.22129019]
[1764075030311,0.0961966,87550.0,87548.0,0.04089019]
[1764075030523,0.0961966,87550.0,87549.0,0.1804]
[1764075030724,0.08477,87550.0,87549.0,0.1804]
[1764075031325,0.08477,87550.0,87549.0,0.19474]
[1764075032128,0.0961966,87550.0,87549.0,0.22132959]
[1764075032315,0.0961966,87550.0,87549.0,0.1804]
[1764075033117,0.0961966,87550.0,87549.0,0.22132959]
[1764075033520,0.08477,87534.0,87533.0,0.08509]
[1764075033722,0.08477,87534.0,87533.0,0.26549]
[1764075035019,0.08477,87534.0,87525.0,0.08209096]
[1764075035020,0.08477,87526.0,87525.0,0.00011449]
[1764075035330,0.08477,87526.0,87525.0,0.08520449]
[1764075035724,0.08477,87526.0,87525.0,0.04308449]
[1764075036022,0.08477,87526.0,87525.0,0.00011449]
[1764075036420,0.08477,87526.0,87525.0,0.08520449]
[1764075039612,0.0001713,87534.0,87530.0,0.0114292]
[1764075039817,0.0849413,87534.0,87533.0,0.08509]
[1764075040012,0.0849413,87534.0,87527.0,0.06146157]
[1764075040013,0.0114291,87531.0,87527.0,0.06146157]
[1764075040226,0.08477,87528.0,87527.0,0.14655157]
[1764075041219,0.08477,87528.0,87527.0,0.08509]
[1764075041424,0.10895,87528.0,87527.0,0.08509]
[1764075041821,0.10895,87528.0,87527.0,0.14655157]
[1764075042619,0.10895,87528.0,87527.0,0.06146157]
[1764075043128,0.0807913,87534.0,87533.0,0.0793]
[1764075043514,0.0403313,87534.0,87533.0,0.0793]
[1764075043923,0.0807913,87534.0,87533.0,0.0793]
[1764075044327,0.5807913,87534.0,87533.0,0.0793]
[1764075045022,0.59222,87534.0,87533.0,0.0793]
[1764075045226,0.0920492,87530.0,87529.0,0.06146157]
[1764075045524,0.0920492,87530.0,87529.0,0.1248]
[1764075045736,0.08062,87529.0,87528.0,0.06146157]
[1764075046029,0.08062,87529.0,87528.0,0.24190157]
[1764075047424,0.08062,87529.0,87528.0,0.25974]
[1764075048129,0.0807913,87534.0,87533.0,0.0793]
[1764075048332,0.0807913,87534.0,87533.0,0.14080326]
[1764075048926,0.0807913,87534.0,87533.0,0.15223206]
[1764075049119,0.0807913,87534.0,87533.0,0.0907288]
[1764075049324,0.0807913,87534.0,87533.0,0.0793]
[1764075049724,0.0403313,87534.0,87533.0,0.0793]
[1764075050129,0.0001713,87534.0,87533.0,0.0793]
[1764075051731,0.10429,87552.0,87551.0,0.0793]
[1764075051930,0.04016,87552.0,87551.0,0.0793]
[1764075052131,0.1048,87560.0,87559.0,0.0793]
[1764075052339,0.1048,87560.0,87559.0,0.30261963]
[1764075052633,0.1048,87560.0,87559.0,0.2411]
[1764075053225,0.1048,87560.0,87559.0,0.21962]
[1764075053823,0.1048,87560.0,87559.0,0.25974]
[1764075054029,0.1048,87560.0,87559.0,0.21956]
[1764075054939,0.1048,87560.0,87559.0,0.25974]
[1764075055133,0.1048,87560.0,87559.0,0.32121404]
[1764075055736,0.08062,87558.0,87557.0,0.06147404]
[1764075055930,0.08062,87558.0,87557.0,0.24191404]
[1764075056130,0.08062,87558.0,87557.0,0.18044]
[1764075056629,0.0920457,87557.0,87556.0,0.06147404]
[1764075056831,0.08062,87557.0,87556.0,0.18044]
[1764075057537,0.08062,87556.0,87555.0,0.10059404]
[1764075057740,0.08062,87556.0,87555.0,0.28103404]
[1764075058736,0.08062,87556.0,87555.0,0.06147404]
[1764075058930,0.02418,87560.0,87551.0,0.0001713]
[1764075058931,0.07193,87554.0,87553.0,0.06147404]
[1764075059134,0.09204,87552.0,87551.0,0.06164534]
[1764075059324,0.09204,87552.0,87551.0,0.1733313]
[1764075059828,0.03633,87552.0,87551.0,0.2458813]
[1764075060333,0.07193,87552.0,87551.0,0.2458813]
[1764075060533,0.09204,87552.0,87551.0,0.1733313]
[1764075060728,0.09204,87552.0,87551.0,0.1805713]
[1764075061132,0.09204,87552.0,87551.0,0.0001713]
[1764075061423,0.09204,87552.0,87551.0,0.03090245]
[1764075061829,0.09204,87552.0,87551.0,0.0001713]
[1764075062026,0.09304,87552.0,87551.0,0.0001713]
[1764075062528,0.0833579,87540.0,87539.0,0.06147404]
[1764075062725,0.07193,87538.0,87537.0,0.06147404]
[1764075062940,0.07193,87538.0,87537.0,0.1804]
[1764075063134,0.02011,87544.0,87537.0,0.25295]
[1764075063338,0.07293,87552.0,87551.0,0.0839765]
[1764075063540,0.03633,87552.0,87551.0,0.0839765]
[1764075063734,0.0962813,87560.0,87559.0,0.07255]
[1764075064037,0.0721013,87560.0,87559.0,0.07255]
[1764075064545,0.5001713,87560.0,87559.0,0.07255]
[1764075065226,0.3241786,87560.0,87559.0,0.15444241]
[1764075065429,0.2687886,87560.0,87559.0,0.47255]
[1764075065636,0.02011,87576.0,87560.0,0.0114253]
[1764075065836,0.02011,87576.0,87575.0,0.0114234]
[1764075066037,0.01184689,87610.0,87583.0,0.0114223]
[1764075066242,0.0202813,87592.0,87583.0,0.0114223]
[1764075067638,0.0202813,87592.0,87579.0,0.0114228]
[1764075067937,0.03633,87576.0,87575.0,0.0001713]
[1764075068142,0.07193,87576.0,87575.0,0.0001713]
[1764075068539,0.07193,87576.0,87575.0,0.1130113]
[1764075069242,0.07193,87576.0,87575.0,0.06142391]
[1764075069442,0.07193,87576.0,87575.0,0.24182391]
[1764075071241,0.07193,87576.0,87575.0,0.1919947]
[1764075072047,0.08929,87584.0,87580.0,0.0114227]
[1764075072240,0.08929,87584.0,87582.0,0.0114224]
[1764075072441,0.05489,87584.0,87582.0,0.0114224]
[1764075072634,0.05489,87584.0,87582.0,0.05224417]
[1764075072839,0.08929,87584.0,87582.0,0.05224417]
[1764075073034,0.08929,87584.0,87583.0,0.04082177]
[1764075073243,0.08929,87584.0,87583.0,0.0408085]
[1764075073244,0.02011,87584.0,87583.0,0.0408085]
[1764075073449,0.02011,87584.0,87582.0,0.0114224]
[1764075073647,0.05489,87584.0,87582.0,0.0114224]
[1764075073949,0.06918,87580.0,87578.0,0.0114229]
[1764075075547,0.06918,87578.0,87577.0,0.06123266]
[1764075075752,0.06918,87577.0,87575.0,0.1919946]
[1764075076455,0.06918,87577.0,87575.0,0.1805713]
[1764075076644,0.06918,87576.0,87575.0,0.1805713]
[1764075076840,0.06918,87576.0,87575.0,0.24274563]
[1764075077046,0.06918,87576.0,87575.0,0.1815313]
[1764075080244,0.06918,87576.0,87575.0,0.0011713]
[1764075080551,0.06918,87576.0,87575.0,0.18118799]
[1764075080754,0.06918,87576.0,87575.0,0.1198913]
[1764075081553,0.0893,87576.0,87575.0,0.1198913]
[1764075083055,0.0893,87576.0,87575.0,0.0011713]
[1764075083254,0.0893,87576.0,87575.0,0.1815313]
[1764075083455,0.0893,87576.0,87570.0,0.04087863]
[1764075083456,0.06918,87572.0,87570.0,0.04087863]
[1764075083760,0.0893,87568.0,87567.0,0.04087863]
[1764075084060,0.0893,87568.0,87567.0,0.13695863]
[1764075084357,0.0893,87568.0,87567.0,0.09608]
[1764075085662,0.0893,87568.0,87567.0,0.09708]
[1764075087369,0.1007243,87568.0,87567.0,0.09708]
[1764075087565,0.0893,87568.0,87567.0,0.09708]
[1764075088475,0.0893,87568.0,87567.0,0.13800355]
[1764075089564,0.0893,87568.0,87567.0,0.09708]
[1764075089871,0.0549,87568.0,87567.0,0.09708]
[1764075090872,0.0893,87568.0,87567.0,0.09708]
[1764075091263,0.0893,87568.0,87567.0,0.1085044]
[1764075091468,0.0893,87568.0,87567.0,0.16980109]
[1764075091671,0.0893,87568.0,87567.0,0.1085044]
[1764075092668,0.0893,87568.0,87567.0,0.1927844]
[1764075093371,0.0893,87568.0,87567.0,0.27465823]
[1764075094274,0.0893,87568.0,87567.0,0.1927844]
[1764075095171,0.0893,87568.0,87567.0,0.18136]
[1764075097479,0.0893,87568.0,87567.0,0.001]
[1764075097680,0.0893,87568.0,87567.0,0.18136]
[1764075098979,0.0893,87568.0,87567.0,0.1927844]
[1764075099983,0.0893,87568.0,87567.0,0.18136]
[1764075100681,0.0893,87568.0,87567.0,0.001]
[1764075100878,0.0893,87568.0,87567.0,0.12096]
[1764075101276,0.0893,87568.0,87567.0,0.1323844]
[1764075101874,0.0893,87568.0,87567.0,0.12096]
[1764075103381,0.1007243,87568.0,87567.0,0.12096]
[1764075103785,0.0893,87568.0,87567.0,0.12096]
[1764075107186,0.1007243,87568.0,87567.0,0.12096]
[1764075107984,0.0893,87568.0,87567.0,0.12096]
[1764075108186,0.0893,87568.0,87567.0,0.1323844]
[1764075108384,0.0893,87568.0,87567.0,0.12096]
[1764075108585,0.0893,87568.0,87567.0,0.1323844]
[1764075108987,0.0893,87568.0,87567.0,0.12096]
[1764075109982,0.1007243,87568.0,87567.0,0.12096]
[1764075111093,0.0893,87568.0,87567.0,0.12096]
[1764075111575,0.0893,87568.0,87567.0,0.1313844]
[1764075111775,0.0893,87568.0,87567.0,0.11996]
[1764075112981,0.0903,87568.0,87567.0,0.11996]
[1764075113480,0.0893,87568.0,87567.0,0.11996]
[1764075113682,0.0903,87568.0,87567.0,0.11996]
[1764075119287,0.1017243,87568.0,87567.0,0.11996]
[1764075120092,0.0903,87568.0,87567.0,0.11996]
[1764075120494,0.0903,87568.0,87567.0,0.20202699]
[1764075120688,0.0903,87568.0,87567.0,0.21345139]
[1764075120883,0.0903,87568.0,87567.0,0.1313844]
[1764075121492,0.0903,87568.0,87567.0,0.11996]
[1764075123592,0.09223,87560.0,87559.0,0.08222329]
[1764075123787,0.0114252,87561.0,87554.0,0.08222329]
[1764075123788,0.103656,87555.0,87554.0,0.08222329]
[1764075124092,0.02828,87556.0,87553.0,0.08222329]
[1764075124093,0.09223,87554.0,87553.0,0.08222329]
[1764075124297,0.09223,87552.0,87551.0,0.18036]
[1764075125199,0.09223,87552.0,87551.0,0.1917865]
[1764075125592,0.07564,87556.0,87555.0,0.011426]
[1764075126090,0.12051,87556.0,87555.0,0.09362984]
[1764075126593,0.12051,87556.0,87554.0,0.08220384]